[Event "FTX Road to Miami Prelims 2022"]
[Site "Online"]
[Date "2022.07.04"]
[Round "3.7"]
[White "Giri, Anish"]
[Black "Sevian, Samuel"]
[Result "1/2-1/2"]
[ECO "C83"]
[WhiteElo "2760"]
[BlackElo "2684"]
[Annotator "TA"]
[PlyCount "111"]
[EventDate "2022.07.10"]
[EventType "tourn"]
[EventCountry "NET"]
[SourceTitle "playchess.com"]
[Source "ChessBase"]
[SourceQuality "1"]
[TimeControl "40/5400+30:1800+30"]

{[%evp 29,111,38,37,50,45,0,6,0,35,37,41,28,29,23,26,21,17,5,6,2,4,0,0,0,0,0,0,0,0,0,0,0,0,0,0,0,0,0,0,0,0,0,0,0,0,0,0,0,0,0,0,0,0,0,0,0,0,0,0,0,0,0,0,0,0,0,0,0,0,0,0,0,0,0,0,0,0,0,0,0,0,0,0,0]} 1. e4 {[%emt 1:15:40]} e5 {[%emt 1:15:40]} 2. Nf3 {[%emt 0:00:21]} Nc6 {[%emt 0:00:22]} 3. Bb5 {[%emt 0:00:21]} a6 {[%emt 0:00:22]} 4. Ba4 {[%emt 0:00:21]} Nf6 {[%emt 0:00:21]} 5. O-O {[%emt 0:00:20]} Nxe4 {[%emt 0:00:35]} 6. d4 {[%emt 0:00:22]} b5 {[%emt 0:00:22]} 7. Bb3 {[%emt 0:00:20]} d5 {[%emt 0:00:21]} 8. dxe5 {[%emt 0:00:22]} Be6 {[%emt 0:00:21]} 9. c3 {[%emt 0:00:22]} Be7 {[%emt 0:00:23]} 10. Nbd2 {[%emt 0:00:26]} O-O {[%emt 0:00:25]} 11. Bc2 {[%emt 0:00:21]} f5 {[%emt 0:00:24]} 12. Nb3 {[%emt 0:00:22]} Qd7 {[%emt 0:00:30]} 13. Nbd4 {[%emt 0:00:21]} Nxd4 {[%emt 0:00:25]} 14. Nxd4 {[%emt 0:00:20]} c5 {[%emt 0:00:21]} 15. Nxe6 {[%emt 0:00:22]} Qxe6 {[%emt 0:00:20]} 16. f3 {[%emt 0:00:30] C83: Open Ruy Lopez: 9 c3 Be7.} Ng5 {[%emt 0:00:24]} 17. Qe2 {[%emt 0:00:26]} Rad8 {[%emt 0:01:14]} 18. Be3 {[%emt 0:00:26] [#]} f4 $146 {[%emt 0:01:45]} (18... Qxe5 $2 19. f4 Qe6 20. fxg5 $16) ({Predecessor:} 18... Qc6 19. Bxg5 Bxg5 20. f4 Be7 21. Rad1 c4 22. h3 Bc5+ 23. Kh2 d4 24. cxd4 Rxd4 {1-0 (34) Prigodin,R (2244)-Davidavicius,R (2092) ICCF email 2020}) 19. Bf2 {[%emt 0:00:40]} Qc6 {[%emt 0:01:11]} 20. a4 {[%emt 0:02:40]} c4 {[%emt 0:02:47]} 21. b4 {[%emt 0:02:52]} cxb3 {[%emt 0:02:56]} 22. Bxb3 {[%emt 0:00:22] This bishop pair is nice.} Qxc3 {[%emt 0:00:22] The position is equal.} 23. Rab1 {[%emt 0:03:31]} Bc5 {[%emt 0:01:18]} 24. axb5 {[%emt 0:00:22]} axb5 {[%emt 0:00:53]} 25. e6 {[%emt 0:00:29] [#] Strongly threatening e7.} Rfe8 {[%emt 0:01:42]} 26. Qxb5 {[%emt 0:00:51]} Bxf2+ {[%emt 0:01:09]} 27. Rxf2 {[%emt 0:00:23]} Nxe6 {[%emt 0:02:03]} 28. Bxd5 {[%emt 0:00:22]} Kh8 {[%emt 0:00:21] [#] And now ...Nc7 would win.} 29. Bxe6 {[%emt 0:00:36]} Rxe6 {[%emt 0:00:23]} 30. Kh1 {[%emt 0:01:44]} h6 {[%emt 0:00:47]} 31. Rff1 {[%emt 0:00:27]} Qf6 {[%emt 0:00:26]} 32. Rbd1 {[%emt 0:00:42]} Rxd1 {[%emt 0:00:29]} 33. Rxd1 $11 {[%emt 0:00:20][%mdl 4096] Endgame KQR-KQR} Kh7 {[%emt 0:00:32]} 34. h3 {[%emt 0:00:25]} Qg6 {[%emt 0:00:23]} 35. Qc4 {[%emt 0:00:28]} Rd6 {[%emt 0:00:46]} 36. Rxd6 {[%emt 0:01:57]} Qxd6 {[%emt 0:00:20] KQ-KQ} 37. Qe4+ {[%emt 0:00:21]} Kh8 {[%emt 0:00:29]} 38. Qf5 {[%emt 0:00:23]} Kg8 {[%emt 0:00:32]} 39. Kh2 {[%emt 0:00:28]} g6 {[%emt 0:00:30]} 40. Qc8+ {[%emt 0:00:28]} Kg7 {[%emt 0:00:22]} 41. Qc3+ {[%emt 0:30:23]} Qf6 {[%emt 0:30:28]} 42. Qc7+ {[%emt 0:00:22]} Qf7 {[%emt 0:00:25]} 43. Qc5 {[%emt 0:00:31]} Qf6 {[%emt 0:00:24]} 44. Qd5 {[%emt 0:00:49]} h5 {[%emt 0:00:29]} 45. Qc5 {[%emt 0:00:27]} Kh6 {[%emt 0:00:29]} 46. Qc7 {[%emt 0:00:25]} Qd4 {[%emt 0:00:50]} 47. Qf7 {[%emt 0:00:26]} Qe5 {[%emt 0:00:23]} 48. Qf8+ {[%emt 0:01:16]} Kh7 {[%emt 0:00:22]} 49. h4 {[%emt 0:00:39]} Qd4 {[%emt 0:00:25]} 50. Qe7+ {[%emt 0:00:38]} Qg7 {[%emt 0:00:55]} 51. Qd6 {[%emt 0:00:58]} Qf7 {[%emt 0:00:25]} 52. Qe5 {[%emt 0:00:21]} Kg8 {[%emt 0:00:28]} 53. Kg1 {[%emt 0:00:52]} Kh7 {[%emt 0:00:23]} 54. Kh2 {[%emt 0:00:36]} Kg8 {[%emt 0:00:21]} 55. Kg1 {[%emt 0:00:26]} Kh7 {[%emt 0:00:21]} 56. Kh2 {[%emt 0:00:43] Weighted Error Value: White=0.02 (flawless) /Black=0.02 (flawless)} 1/2-1/2

[Event "FTX Road to Miami Prelims 2022"]
[Site "Online"]
[Date "2022.07.04"]
[Round "3.8"]
[White "Xiong, Jeffery"]
[Black "Tari, Aryan"]
[Result "1-0"]
[ECO "C47"]
[WhiteElo "2691"]
[BlackElo "2672"]
[Annotator "TA"]
[PlyCount "89"]
[EventDate "2022.07.10"]
[EventType "tourn"]
[EventCountry "NET"]
[SourceTitle "playchess.com"]
[Source "ChessBase"]
[SourceQuality "1"]
[TimeControl "40/5400+30:1800+30"]

{[%evp 17,89,0,2,4,14,4,0,0,0,0,0,0,11,0,33,16,33,20,20,20,17,24,7,20,18,22,50,50,127,141,140,132,141,110,108,101,107,104,127,129,124,109,126,121,181,181,216,204,467,460,620,613,613,613,613,603,606,606,585,581,586,579,591,563,1054,1054,29976,29977,29977,29976,29975,29976,29979,29980]} 1. e4 {[%emt 1:15:40]} e5 {[%emt 1:15:40]} 2. Nf3 {[%emt 0:00:23]} Nc6 {[%emt 0:00:22]} 3. d4 {[%emt 0:00:21]} exd4 {[%emt 0:00:22]} 4. Nxd4 {[%emt 0:00:20]} Nf6 {[%emt 0:00:23]} 5. Nc3 {[%emt 0:00:31]} Bb4 {[%emt 0:00:21]} 6. Nxc6 {[%emt 0:00:21]} bxc6 {[%emt 0:00:21]} 7. Bd3 {[%emt 0:00:21]} d5 {[%emt 0:00:23]} 8. exd5 {[%emt 0:00:20]} O-O {[%emt 0:00:22]} 9. O-O {[%emt 0:00:21]} cxd5 {[%emt 0:00:38]} 10. h3 {[%emt 0:00:22] C47: Scotch Four Knights and Four Knights with 4 g3.} Rb8 {[%emt 0:00:56]} 11. Qf3 {[%emt 0:00:23]} Re8 {[%emt 0:00:28] 11...Rb6 is the modern continuation.} 12. Rd1 $5 {[%emt 0:00:27][%mdl 4] The position is equal. Leaves trodden paths.} c6 {[%emt 0:00:32]} 13. Bf4 {[%emt 0:00:22]} Bd6 {[%emt 0:00:21]} 14. b3 {[%emt 0:00:21]} Be6 {[%emt 0:00:51]} 15. Ne2 {[%emt 0:00:23]} Qc7 {[%emt 0:00:48]} 16. c4 {[%emt 0:00:28] [#]} Bxf4 $146 {[%emt 0:02:31]} ({Predecessor:} 16... a5 17. Rac1 a4 18. bxa4 Rb4 19. Bxd6 Qxd6 20. Bc2 Qe5 21. c5 Bxh3 22. Qc3 Qg5 {½-½ (47) Xiong,J (2685)-Hansen,E (2606) Chess.com INT 2022}) 17. Nxf4 {[%emt 0:00:25]} h6 {[%emt 0:01:18]} 18. Rac1 {[%emt 0:00:41][%cal Ba1c1,Bc1c4,Bc4c6][%mdl 32] Black must now prevent cxd5.} Qa5 {[%emt 0:00:22]} 19. Bb1 {[%emt 0:03:16]} (19. Nxe6 {looks sharper.} Rxe6 20. cxd5 cxd5 21. Qf4) 19... dxc4 {[%emt 0:02:33]} 20. Nxe6 {[%emt 0:00:26]} Rxe6 {[%emt 0:00:20]} 21. Rxc4 {[%emt 0:00:21]} Re1+ {[%emt 0:00:35]} 22. Kh2 {[%emt 0:00:21]} Rd8 {[%emt 0:00:58]} (22... Rxd1 $14 23. Qxd1 Qc7+ 24. g3 Re8) 23. Rxd8+ $1 $16 {[%emt 0:01:36]} Qxd8 {[%emt 0:00:20] [#]} 24. Rxc6 $1 {[%emt 0:03:46]} Nd7 {[%emt 0:05:33][%cal Bf6d7,Bd7e5,Be5c6,Bc6d4][%mdl 32]} (24... Rxb1 $2 25. Qf5 Ng4+ 26. Kg3) (24... Qb8+ 25. g3) 25. Bf5 {[%emt 0:03:12]} Ne5 {[%emt 0:01:00][%csl LRc6,LRf3]} 26. Qc3 {[%emt 0:00:21] Strongly threatening Rc8.} Nxc6 {[%emt 0:00:47]} 27. Qxe1 {[%emt 0:00:21][%mdl 4096] Endgame KQB-KQN} g6 {[%emt 0:00:46]} 28. Be4 {[%emt 0:00:38]} Nd4 {[%emt 0:01:02]} 29. Qe3 {[%emt 0:00:49]} Qf6 {[%emt 0:00:40]} 30. g3 {[%emt 0:00:51]} a5 {[%emt 0:00:29]} (30... Qe5 $16 31. Kg2 (31. Bxg6 fxg6 32. Qxh6 Qe4 $17) 31... f5) 31. Kg2 $18 {[%emt 0:00:24]} h5 {[%emt 0:00:28] [#]} 32. h4 $1 {[%emt 0:00:53]} Nb5 $2 {[%emt 0:00:21] [#]} (32... Qd8 33. Qc3 Qb6) 33. Bxg6 $1 {[%emt 0:00:56][%mdl 512]} Qxg6 {[%emt 0:00:28]} (33... fxg6 34. Qe8+) 34. Qe8+ {[%emt 0:00:22]} Kg7 {[%emt 0:00:20]} 35. Qxb5 {[%emt 0:00:20] KQ-KQ} Qe4+ {[%emt 0:00:21]} 36. Kh2 {[%emt 0:01:30]} Qc2 {[%emt 0:00:21]} 37. Qg5+ {[%emt 0:00:21]} Kf8 {[%emt 0:00:21]} 38. Qd8+ {[%emt 0:00:56]} Kg7 {[%emt 0:00:22] [#]} 39. Qd4+ {[%emt 0:00:20]} f6 {[%emt 0:00:21]} 40. a3 {[%emt 0:01:07] Threatens to win with b4.} Kg6 {[%emt 0:01:39]} 41. b4 {[%emt 0:30:22][%cal Bb3b4,Bb4b5,Bb5b6][%mdl 32]} a4 {[%emt 0:30:21]} 42. b5 {[%emt 0:00:24] White mates.} Qb3 {[%emt 0:00:24]} 43. Qc5 {[%emt 0:00:23]} Qb1 {[%emt 0:00:28]} 44. b6 {[%emt 0:00:24]} Qb2 {[%emt 0:00:30]} 45. Kg2 {[%emt 0:00:27] Weighted Error Value: White=0.03 (flawless) /Black=0.29 (precise)} 1-0

[Event "FTX Road to Miami Prelims 2022"]
[Site "Online"]
[Date "2022.07.04"]
[Round "4.1"]
[White "Niemann, Hans Moke"]
[Black "Tari, Aryan"]
[Result "1-0"]
[ECO "D32"]
[WhiteElo "2688"]
[BlackElo "2672"]
[Annotator "TA"]
[PlyCount "133"]
[EventDate "2022.07.10"]
[EventType "tourn"]
[EventCountry "NET"]
[SourceTitle "playchess.com"]
[Source "ChessBase"]
[SourceQuality "1"]
[TimeControl "40/5400+30:1800+30"]

{[%evp 16,133,18,20,19,0,17,6,0,15,18,12,20,14,14,0,0,0,0,0,82,85,85,85,85,85,83,85,83,60,81,78,82,82,82,82,95,79,79,60,57,64,112,97,95,95,85,102,150,142,135,127,127,132,163,162,162,162,163,163,167,157,156,125,135,139,150,148,148,145,231,220,206,220,272,272,406,402,491,482,463,428,1012,402,458,405,29970,29971,29971,29972,29972,29973,29973,29974,29974,29975,29975,29976,29976,29977,29980,29981,29981,29982,29983,29984,29984,29983,29985,29982,29984,29985,29985,29986,29986,0,29982,29983,29991,29992]} 1. Nf3 {[%emt 1:15:40]} d5 {[%emt 1:15:40]} 2. d4 {[%emt 0:00:28]} Nf6 {[%emt 0:00:22]} 3. c4 {[%emt 0:00:31]} e6 {[%emt 0:00:22]} 4. Nc3 {[%emt 0:00:21]} c5 {[%emt 0:00:22]} 5. e3 {[%emt 0:00:40]} Nc6 {[%emt 0:00:22]} 6. cxd5 {[%emt 0:00:22]} exd5 {[%emt 0:00:21]} 7. Bb5 {[%emt 0:00:29]} cxd4 {[%emt 0:00:21] is currently scoring better than 7...Bd6.} 8. Nxd4 {[%emt 0:00:23]} Bd7 {[%emt 0:00:22]} 9. O-O {[%emt 0:00:31]} Bd6 {[%emt 0:00:21] D32: Tarrasch Defence: Sidelines and lines without g3.} 10. Nf3 {[%emt 0:00:27]} Be6 {[%emt 0:00:43]} 11. b3 {[%emt 0:00:26]} a6 {[%emt 0:00:23] The position is equal.} 12. Bd3 {[%emt 0:00:27]} Ne5 {[%emt 0:00:23]} 13. Nxe5 {[%emt 0:01:27]} Bxe5 {[%emt 0:00:20]} 14. Bb2 {[%emt 0:00:21]} O-O {[%emt 0:00:56] [#]} 15. h3 $5 $146 {[%emt 0:00:37][%mdl 8] New and interesting.} ({Predecessor:} 15. Qd2 d4 16. exd4 Qxd4 17. Na4 Qd6 18. Bxe5 Qxe5 19. Rfe1 Qh5 {½-½ (19) Martin Sanchez,C (2510)-Bokar,J (2526) ICCF email 2020}) 15... Rc8 {[%emt 0:02:05]} 16. Rc1 {[%emt 0:00:25]} Qa5 {[%emt 0:01:45][%cal Re5c3]} 17. Qe1 {[%emt 0:00:25]} Rfd8 {[%emt 0:01:11]} (17... Ne4 $11 {keeps the balance.} 18. Nxe4 Qxe1 19. Rfxe1 Bxb2 20. Rxc8 Rxc8) 18. f4 $1 $16 {[%emt 0:00:46]} Bd6 {[%emt 0:00:52] [#]} 19. Ne4 $1 {[%emt 0:00:32]} Qxe1 {[%emt 0:01:07]} 20. Nxf6+ {[%emt 0:00:24]} gxf6 {[%emt 0:00:20]} 21. Rfxe1 {[%emt 0:00:21]} Bb4 {[%emt 0:00:44]} 22. Red1 {[%emt 0:01:13]} (22. Bxf6 Bxe1 23. Rxe1 Rd6 $11) 22... Rxc1 {[%emt 0:00:23]} 23. Bxc1 {[%emt 0:00:23]} (23. Rxc1 $6 Bd2 24. Rc7 Bxe3+ 25. Kf1 Bxf4 26. Rxb7 Be5 $11) 23... Bc3 {[%emt 0:01:34]} 24. g4 {[%emt 0:00:37]} b5 {[%emt 0:01:08]} 25. Kf2 {[%emt 0:00:36]} b4 {[%emt 0:01:41]} 26. Be4 {[%emt 0:00:34]} Rd7 {[%emt 0:02:07]} 27. Bf3 {[%emt 0:00:26] And now f5 would win.} f5 {[%emt 0:00:21]} 28. Ke2 {[%emt 0:01:16]} Kf8 {[%emt 0:00:39]} (28... d4 $14 {is more appropriate.}) 29. gxf5 {[%emt 0:00:43]} Bxf5 {[%emt 0:00:20]} 30. Bg4 $1 {[%emt 0:00:21]} (30. Rxd5 $6 Rxd5 31. Bxd5 Bxh3 $11) (30. Bxd5 Bc2 31. e4 Bxd1+ 32. Kxd1 f5 $15) 30... Bxg4+ {[%emt 0:00:53]} 31. hxg4 {[%emt 0:00:20][%mdl 4096] Endgame KRB-KRB} f6 {[%emt 0:00:20] [#]} (31... f5 $142) 32. e4 $1 {[%emt 0:00:40]} Re7 {[%emt 0:00:38]} 33. Rxd5 {[%emt 0:00:26]} Rxe4+ {[%emt 0:00:21]} 34. Be3 {[%emt 0:00:20]} Re6 {[%emt 0:00:53]} 35. Kd3 {[%emt 0:00:26]} Ke8 {[%emt 0:00:29]} 36. Rh5 {[%emt 0:00:55]} Rd6+ {[%emt 0:00:29]} 37. Ke4 {[%emt 0:00:24]} Re6+ {[%emt 0:00:28]} 38. Kf3 {[%emt 0:00:23]} Re7 {[%emt 0:00:21]} 39. Rd5 {[%emt 0:00:35]} Re6 {[%emt 0:00:37]} 40. Bc5 {[%emt 0:00:32]} Re1 {[%emt 0:01:38]} 41. Rd6 {[%emt 0:30:23]} a5 {[%emt 0:30:21] [#]} 42. Ra6 $1 {[%emt 0:00:26]} f5 {[%emt 0:02:51]} (42... Rh1 $16 43. Rxa5 h5 44. gxh5 Rxh5) 43. gxf5 $18 {[%emt 0:00:28]} h5 {[%emt 0:00:26]} 44. Rxa5 {[%emt 0:00:33]} Rf1+ {[%emt 0:00:28]} 45. Ke4 {[%emt 0:00:31]} h4 {[%emt 0:00:22]} (45... Re1+ {was called for.} 46. Kd3 Rd1+ 47. Kc4 Rf1) 46. Ra7 {[%emt 0:00:23]} h3 {[%emt 0:01:15]} 47. Re7+ {[%emt 0:00:26]} (47. Rh7 Rh1 48. f6 Bxf6 49. Bxb4 Ba1 $18) 47... Kd8 {[%emt 0:00:23] aiming for ...Re1+.} 48. Rh7 {[%emt 0:00:20] Threatens to win with Be7+.} Rh1 {[%emt 0:00:21]} (48... Re1+ $142 49. Kf3 Rh1 50. Be7+ Ke8) 49. Kd5 {[%emt 0:00:35]} (49. Be7+ $142 Ke8 50. f6) 49... h2 {[%emt 0:00:40] White must now prevent ...Rd1+.} 50. Kc6 {[%emt 0:00:25]} Bd4 {[%emt 0:00:25]} (50... Ke8 $18 51. Kb5 Rf1) 51. Bxd4 {[%emt 0:01:03] KRB-KR} ({Weaker is} 51. Rd7+ Ke8 52. Re7+ (52. Rxd4 $2 Rc1 $19) 52... Kd8 53. Rd7+ Ke8 54. Re7+ (54. Rxd4 $2 Re1 $19) 54... Kd8 55. Rd7+ $11) 51... Rc1+ {[%emt 0:00:21]} 52. Kb5 {[%emt 0:00:32]} h1=Q {[%emt 0:00:20]} 53. Rxh1 {[%emt 0:00:22]} Rxh1 {[%emt 0:00:20]} 54. Kxb4 {[%emt 0:00:21] KR-KB} Kd7 {[%emt 0:00:43]} 55. a4 {[%emt 0:00:25]} Kc6 {[%emt 0:00:25]} 56. f6 {[%emt 0:00:24]} Rh8 {[%emt 0:00:24]} 57. Kc4 {[%emt 0:00:26]} Rc8 {[%emt 0:00:22]} 58. Bc5 {[%emt 0:00:23]} Rc7 {[%emt 0:01:44]} 59. b4 {[%emt 0:00:21][%cal Bb3b4,Bb4b5][%mdl 32]} Rh7 {[%emt 0:00:20]} 60. b5+ {[%emt 0:00:22]} Kd7 {[%emt 0:00:21]} 61. Bd4 {[%emt 0:00:21]} Rh4 {[%emt 0:00:27]} 62. Be5 {[%emt 0:00:22]} Rh1 {[%emt 0:00:20]} 63. a5 {[%emt 0:00:24]} Rc1+ {[%emt 0:00:22]} 64. Bc3 {[%emt 0:00:22]} Rf1 {[%emt 0:00:24]} 65. Be5 {[%emt 0:00:23]} Rc1+ $1 {[%emt 0:00:21]} 66. Kd5 {[%emt 0:00:21]} Kc8 {[%emt 0:00:48]} 67. f7 {[%emt 0:00:25] Weighted Error Value: White=0.12 (very precise) /Black=0.31} 1-0

[Event "FTX Road to Miami Prelims 2022"]
[Site "Online"]
[Date "2022.07.04"]
[Round "4.2"]
[White "Sevian, Samuel"]
[Black "Xiong, Jeffery"]
[Result "1-0"]
[ECO "C43"]
[WhiteElo "2684"]
[BlackElo "2691"]
[Annotator "TA"]
[PlyCount "115"]
[EventDate "2022.07.10"]
[EventType "tourn"]
[EventCountry "NET"]
[SourceTitle "playchess.com"]
[Source "ChessBase"]
[SourceQuality "1"]
[TimeControl "40/5400+30:1800+30"]

{[%evp 16,115,26,0,6,0,0,0,0,0,50,42,58,16,15,25,24,22,41,23,23,30,28,26,33,16,36,0,27,27,18,18,20,12,14,22,12,10,21,0,29,25,29,22,48,63,64,64,46,32,175,170,162,162,162,162,166,183,147,108,194,0,317,306,208,224,367,251,397,355,247,95,410,356,365,123,1235,1131,1595,1551,1296,1240,1124,1124,802,704,29943,29953,12848,29947,12798,29938,12057,11266,9883,10432,5645,4915,12841,8520,29954,1486]} 1. e4 {[%emt 1:15:40]} e5 {[%emt 1:15:40]} 2. Nf3 {[%emt 0:00:22]} Nf6 {[%emt 0:00:21]} 3. d4 {[%emt 0:00:22]} exd4 {[%emt 0:00:22]} 4. e5 {[%emt 0:00:29]} Ne4 {[%emt 0:00:21]} 5. Qxd4 {[%emt 0:00:24]} d5 {[%emt 0:00:22]} 6. exd6 {[%emt 0:00:22]} Nxd6 {[%emt 0:00:21]} 7. Nc3 {[%emt 0:00:21]} Nc6 {[%emt 0:00:20]} 8. Qf4 {[%emt 0:00:22]} g6 {[%emt 0:00:21]} 9. Bb5 {[%emt 0:00:39] 9.Bd2 gains popularity.} Bg7 {[%emt 0:00:27] aiming for ...Bxc3+. C43: Petroff Defence: 3 d4.} 10. Bxc6+ {[%emt 0:00:22]} bxc6 {[%emt 0:00:20]} 11. Be3 $5 {[%emt 0:00:21][%mdl 4] An interesting side line.} O-O {[%emt 0:00:54] [#] The position is equal.} 12. O-O-O $146 {[%emt 0:00:25][%cal Ba1d1,Bd1d3,Bd3f3][%mdl 32]} ({Predecessor:} 12. O-O Re8 13. Rfe1 Bxc3 14. bxc3 Re4 15. Qg5 Qxg5 16. Bxg5 Bf5 17. Nd4 c5 18. Nxf5 gxf5 {0-1 (56) Olsinskas,D (1599)-Asin Velazquez,J ICCF email 2021}) 12... Qd7 {[%emt 0:01:55]} (12... Bxc3 $11 13. bxc3 Be6) 13. Bd4 {[%emt 0:01:27]} Qg4 {[%emt 0:00:23]} 14. Qxg4 {[%emt 0:00:27]} (14. Qg3 {is more complex.} Re8 15. Rhe1 Bf5 16. Bxg7 Kxg7 17. Re5) 14... Bxg4 {[%emt 0:00:20]} 15. Bxg7 {[%emt 0:00:21]} Kxg7 {[%emt 0:00:21]} 16. Rd3 {[%emt 0:00:20]} Bxf3 {[%emt 0:00:20]} 17. Rxf3 {[%emt 0:00:39]} Rfe8 {[%emt 0:00:22]} 18. Rd1 {[%emt 0:02:15]} Re5 {[%emt 0:00:24]} 19. b3 {[%emt 0:00:21]} Rae8 {[%emt 0:01:05]} 20. Na4 {[%emt 0:01:41]} Re2 {[%emt 0:00:49]} 21. Nc3 {[%emt 0:00:56]} R2e5 {[%emt 0:00:24]} 22. h4 {[%emt 0:01:24]} h5 {[%emt 0:01:00]} 23. g3 {[%emt 0:00:29]} R8e6 {[%emt 0:01:10]} 24. Na4 {[%emt 0:01:04]} Rf6 {[%emt 0:01:03]} 25. Rxf6 {[%emt 0:00:44]} Kxf6 $11 {[%emt 0:00:20][%mdl 4096] Endgame KRN-KRN} 26. Nc3 {[%emt 0:00:22]} Rf5 {[%emt 0:01:25]} 27. f4 {[%emt 0:00:56]} Ke7 {[%emt 0:00:45]} 28. Re1+ {[%emt 0:01:46]} Kd7 {[%emt 0:00:54]} 29. Ne4 {[%emt 0:00:22]} f6 {[%emt 0:01:55]} 30. c4 {[%emt 0:01:41]} Nxe4 {[%emt 0:02:56]} 31. Rxe4 $14 {[%emt 0:00:23] KR-KR} Ra5 {[%emt 0:00:20]} 32. Re2 {[%emt 0:03:07]} c5 {[%emt 0:00:22]} (32... Ra6 $14) 33. g4 $1 $18 {[%emt 0:01:52][%cal Bg3g4,Bg4h5,Bh5h6][%mdl 32] Threatens to win with f5.} Ra6 {[%emt 0:05:21]} 34. f5 {[%emt 0:02:01]} gxf5 {[%emt 0:00:20]} 35. gxh5 {[%emt 0:00:21]} f4 {[%emt 0:00:21]} 36. Kd1 $1 {[%emt 0:01:24]} ({Weaker is} 36. h6 f5 $11) 36... f3 {[%emt 0:01:32]} 37. Rd2+ {[%emt 0:00:36]} Ke6 {[%emt 0:00:58]} (37... Rd6 $2 38. Rxd6+ cxd6 39. h6 $18) (37... Ke7 $16 {is a better defense.}) 38. Ke1 $2 {[%emt 0:00:35]} (38. h6 $18 {Strongly threatening h7.} Kf7 39. Ke1) 38... Kf5 $2 {[%emt 0:00:24][%mdl 8192]} (38... Ke5 $1 $11 {and Black has nothing to worry.}) 39. h6 $1 {[%emt 0:01:54]} Kg6 {[%emt 0:02:13]} 40. Kf2 {[%emt 0:00:21]} Ra3 {[%emt 0:00:26]} (40... Kxh6 $142 41. Kxf3 Kh5) 41. Kxf3 {[%emt 0:30:29]} a5 {[%emt 0:30:22]} (41... Kxh6 {was worth a try.} 42. Kg4 Ra6) 42. Ke4 {[%emt 0:00:35][%cal Oh6h7]} a4 {[%emt 0:00:56]} 43. bxa4 {[%emt 0:00:24]} (43. Rf2 $18) 43... c6 $2 {[%emt 0:00:21][%mdl 8192]} (43... Rxa4 $16 {is tougher.} 44. Kd5 Kxh6) 44. h5+ {[%emt 0:00:49]} Kxh6 {[%emt 0:00:22] [#]} 45. Kf5 $2 {[%emt 0:00:21]} (45. Rc2 $1 $18 {is the precise move to win.} Kg5 46. Rh2) 45... Rxa4 $2 {[%emt 0:00:22][%mdl 8192] [#]} (45... Rc3 $16) 46. Rc2 $1 {[%emt 0:00:22]} Kg7 {[%emt 0:00:51]} 47. h6+ {[%emt 0:00:21]} Kxh6 {[%emt 0:00:23]} 48. Kxf6 {[%emt 0:00:21][%cal Rc2h2]} Kh5 {[%emt 0:00:21]} 49. Ke5 {[%emt 0:00:41] Black must now prevent Kd6.} Kg4 {[%emt 0:00:21]} 50. Kd6 {[%emt 0:00:22][%csl LRc5,LRc6]} Kf4 {[%emt 0:00:23]} 51. Kxc6 {[%emt 0:00:39]} Ke4 {[%emt 0:00:46]} 52. Kb5 {[%emt 0:00:40]} Ra8 {[%emt 0:00:39]} 53. Rd2 {[%emt 0:00:21]} Rb8+ {[%emt 0:00:37]} 54. Kxc5 {[%emt 0:00:21]} Rc8+ {[%emt 0:00:20]} 55. Kb4 {[%emt 0:00:21]} Rb8+ {[%emt 0:00:29]} 56. Kc3 {[%emt 0:00:21]} Ra8 {[%emt 0:00:33]} 57. c5 {[%emt 0:00:47] White threatens Kc4 and mate.} Ke5 {[%emt 0:00:46]} 58. Kc4 {[%emt 0:00:24] Weighted Error Value: White=0.21 (precise) /Black=0.83} (58. Kb4 $142 Rb8+ 59. Ka5 Rc8 60. Kb6 Rb8+ 61. Kc7 Rb4 62. Kd7 Rb7+ 63. Kc8) 1-0